fUST/lending_fUST_20250930
["ID","MTS","AMOUNT","RATE_DAILY","PERIOD"]
[388424689,1759164647901,-480.0,0.00023738,2]
[388424690,1759164647910,-925.14,0.00023738,2]
[388424692,1759164647919,-745.77,0.00023738,2]
[388424694,1759164647929,-6255.06,0.00023738,2]
[388424695,1759164647938,-480.0,0.00023738,2]
[388424696,1759164647947,-480.0,0.00023738,2]
[388424698,1759164647958,-480.0,0.00023738,2]
[388424700,1759164647967,-2770.39,0.00023738,2]
[388424701,1759164647976,-868.46,0.00023738,2]
[388424702,1759164647985,-480.0,0.00023738,2]
[388424703,1759164647994,-845.56,0.00023738,2]
[388424704,1759164648004,-945.18,0.00023738,2]
[388424705,1759164648015,-507.22027752,0.00023738,2]
[388424706,1759164648025,-480.0,0.00023738,2]
[388424707,1759164648034,-480.0,0.00023738,2]
[388424708,1759164648044,-6262.52,0.00023738,2]
[388424709,1759164648053,-480.0,0.00023738,2]
[388424710,1759164648063,-896.93,0.00023738,2]
[388424711,1759164648073,-480.0,0.00023738,2]
[388424712,1759164648082,-480.0,0.00023738,2]
[388424713,1759164648092,-500.0,0.00023739,2]
[388424714,1759164648102,-1000.0,0.00023761,2]
[388424715,1759164648111,-365.98672965,0.00023764,2]
[388424716,1759164648120,-1463.94691861,0.00023764,2]
[388424717,1759164648130,-3290.58668631,0.00023764,2]
[388424718,1759164648148,-627.89869156,0.00023764,2]
[388424719,1759164648157,-8009.32872028,0.00023765,2]
[388424720,1759164648167,-1217.0,0.00023786,2]
[388424721,1759164648179,-2175.0,0.00023787,2]
[388424722,1759164648189,-151.0,0.000238,5]
[388424723,1759164648199,-151.0,0.000238,8]
[388424724,1759164648212,-151.0,0.000238,5]
[388424725,1759164648222,-151.0,0.000238,8]
[388424726,1759164648232,-151.0,0.000238,9]
[388424727,1759164648242,-927.28722379,0.00023802,2]
[388424728,1759164648251,-480.0,0.00023813,2]
[388424729,1759164648261,-480.0,0.00023813,2]
[388424730,1759164648270,-480.0,0.00023813,2]
[388424731,1759164648279,-480.0,0.00023813,2]
[388424732,1759164648289,-480.0,0.00023813,2]
[388424733,1759164648299,-480.0,0.00023813,2]
[388424734,1759164648308,-583.2,0.00023813,2]
[388424735,1759164648318,-480.0,0.00023813,2]
[388424736,1759164648328,-571.26,0.00023813,2]
[388424737,1759164648337,-480.0,0.00023813,2]
[388424738,1759164648347,-480.0,0.00023813,2]
[388424739,1759164648356,-480.0,0.00023813,2]
[388424740,1759164648365,-480.0,0.00023813,2]
[388424741,1759164648374,-716.52,0.00023813,2]
[388424742,1759164648383,-896.63,0.00023813,2]
[388424743,1759164648393,-480.0,0.00023813,2]
[388424744,1759164648402,-917.79,0.00023813,2]
[388424745,1759164648411,-480.0,0.00023813,2]
[388424746,1759164648419,-480.0,0.00023813,2]
[388424747,1759164648428,-655.19,0.00023813,2]
[388424748,1759164648437,-480.0,0.00023813,2]
[388424749,1759164648447,-480.0,0.00023813,2]
[388424750,1759164648456,-2113.08,0.00023813,2]
[388424751,1759164648465,-480.0,0.00023813,2]
[388424752,1759164648475,-1480.41,0.00023813,2]
[388424753,1759164648485,-480.0,0.00023813,2]
[388424754,1759164648494,-480.0,0.00023813,2]
[388424755,1759164648503,-240.19001235,0.00023813,2]
[388424756,1759164648512,-480.0,0.00023813,2]
[388424757,1759164648521,-480.0,0.00023813,2]
[388424758,1759164648530,-1196.6,0.00023813,2]
[388424759,1759164648539,-480.0,0.00023813,2]
[388424760,1759164648547,-480.0,0.00023813,2]
[388424761,1759164648556,-480.0,0.00023813,2]
[388424762,1759164648565,-480.0,0.00023813,2]
[388424763,1759164648574,-480.0,0.00023813,2]
[388424764,1759164648583,-872.25,0.00023813,2]
[388424765,1759164648592,-480.0,0.00023813,2]
[388424766,1759164648602,-480.0,0.00023813,2]
[388424767,1759164648611,-480.0,0.00023813,2]
[388424768,1759164648620,-685.54,0.00023813,2]
[388424769,1759164648629,-500.0,0.00023813,2]
[388424770,1759164648638,-480.0,0.00023813,2]
[388424771,1759164648647,-567.12,0.00023813,2]
[388424772,1759164648656,-480.0,0.00023813,2]
[388424773,1759164648665,-504.77,0.00023813,2]
[388424774,1759164648674,-480.0,0.00023813,2]
[388424775,1759164648683,-480.0,0.00023813,2]
[388424776,1759164648692,-1122.77,0.00023813,2]
[388424777,1759164648702,-480.0,0.00023813,2]
[388424778,1759164648711,-998.5,0.00023813,2]
[388424779,1759164648720,-956.38,0.00023813,2]
[388424780,1759164648729,-656.25,0.00023813,2]
[388424781,1759164648738,-953.45,0.00023813,2]
[388424782,1759164648747,-480.0,0.00023813,2]
[388424783,1759164648756,-480.0,0.00023813,2]
[388424784,1759164648765,-699.93,0.00023813,2]
[388424785,1759164648774,-480.0,0.00023813,2]
[388424786,1759164648783,-669.29,0.00023813,2]
[388424787,1759164648792,-480.0,0.00023813,2]
[388424788,1759164648801,-390.01336953,0.00023813,2]
[388424789,1759164648812,-480.0,0.00023813,2]
[388424790,1759164648822,-480.0,0.00023813,2]
[388424791,1759164648831,-480.0,0.00023813,2]
[388424792,1759164648840,-480.0,0.00023813,2]
[388424793,1759164648850,-480.0,0.00023813,2]
[388424794,1759164648859,-604.50982546,0.00023813,2]
[388424795,1759164648868,-480.28,0.00023813,2]
[388424796,1759164648878,-480.0,0.00023813,2]
[388424797,1759164648887,-480.0,0.00023813,2]
[388424798,1759164648897,-480.0,0.00023813,2]
[388424799,1759164648906,-755.6,0.00023813,2]
[388424800,1759164648916,-480.0,0.00023813,2]
[388424801,1759164648925,-588.95,0.00023813,2]
[388424802,1759164648936,-664.35,0.00023813,2]
[388424803,1759164648946,-480.0,0.00023813,2]
[388424804,1759164648957,-480.0,0.00023813,2]
[388424805,1759164648966,-480.0,0.00023813,2]
[388424806,1759164648975,-505.679891,0.00023813,2]
[388424807,1759164648985,-480.0,0.00023813,2]
[388424808,1759164648994,-2344.23,0.00023813,2]
[388424809,1759164649003,-480.0,0.00023813,2]
[388424810,1759164649012,-735.96,0.00023813,2]
[388424811,1759164649022,-500.12,0.00023813,2]
[388424812,1759164649031,-804.98,0.00023813,2]
[388424813,1759164649040,-480.0,0.00023813,2]
[388424814,1759164649050,-543.03,0.00023813,2]
[388424815,1759164649059,-480.0,0.00023813,2]
[388424816,1759164649068,-480.0,0.00023813,2]
[388424817,1759164649078,-480.0,0.00023813,2]
[388424818,1759164649087,-762.01,0.00023813,2]
[388424819,1759164649096,-605.15,0.00023813,2]
[388424820,1759164649107,-583.03,0.00023813,2]
[388424821,1759164649116,-480.0,0.00023813,2]
[388424822,1759164649126,-1440.98,0.00023813,2]
[388424823,1759164649137,-480.0,0.00023813,2]
[388424824,1759164649147,-480.0,0.00023813,2]
[388424825,1759164649156,-480.0,0.00023813,2]
[388424826,1759164649166,-480.0,0.00023813,2]
[388424827,1759164649176,-655.65,0.00023813,2]
[388424828,1759164649185,-597.01,0.00023813,2]
[388424829,1759164649195,-480.0,0.00023813,2]
[388424830,1759164649206,-357.24883556,0.00023813,2]
[388424831,1759164649217,-480.0,0.00023813,2]
[388424832,1759164649228,-480.0,0.00023813,2]
[388424833,1759164649238,-480.0,0.00023813,2]
[388424834,1759164649247,-480.0,0.00023813,2]
[388424835,1759164649258,-603.18,0.00023813,2]
[388424836,1759164649268,-480.0,0.00023813,2]
[388424837,1759164649278,-607.19,0.00023813,2]
[388424838,1759164649288,-590.23,0.00023813,2]
[388424839,1759164649298,-480.0,0.00023813,2]
[388424840,1759164649308,-480.0,0.00023813,2]
[388424841,1759164649319,-731.82,0.00023813,2]
[388424842,1759164649328,-480.0,0.00023813,2]
[388424843,1759164649338,-480.0,0.00023813,2]
[388424844,1759164649348,-480.0,0.00023813,2]
[388424845,1759164649359,-500.0,0.00023813,2]
[388424846,1759164649369,-480.0,0.00023813,2]
[388424847,1759164649379,-480.0,0.00023813,2]
[388424848,1759164649390,-733.26,0.00023813,2]
[388424849,1759164649400,-37898.81420301,0.00023813,2]
[388424850,1759164649411,-480.0,0.00023813,2]
[388424851,1759164649421,-480.0,0.00023813,2]
[388424852,1759164649430,-480.0,0.00023813,2]
[388424853,1759164649440,-480.0,0.00023813,2]
[388424854,1759164649450,-1406.03,0.00023813,2]
[388424855,1759164649463,-480.0,0.00023813,2]
[388424856,1759164649472,-480.0,0.00023813,2]
[388424857,1759164649481,-480.0,0.00023813,2]
[388424858,1759164649491,-746.03,0.00023813,2]
[388424859,1759164649501,-668.39,0.00023813,2]
[388424860,1759164649511,-592.17,0.00023813,2]
[388424861,1759164649521,-480.0,0.00023813,2]
[388424862,1759164649531,-480.0,0.00023813,2]
[388424863,1759164649541,-480.0,0.00023813,2]
[388424864,1759164649551,-647.59,0.00023813,2]
[388424865,1759164649561,-480.0,0.00023813,2]
[388424866,1759164649571,-367.36770675,0.00023813,2]
[388424867,1759164649581,-300.01605822,0.00023813,2]
[388424868,1759164649591,-480.0,0.00023813,2]
[388424869,1759164649600,-678.25,0.00023813,2]
[388424870,1759164649610,-480.0,0.00023813,2]
[388424871,1759164649619,-480.0,0.00023813,2]
[388424872,1759164649628,-767.6,0.00023813,2]
[388424873,1759164649638,-481.16,0.00023813,2]
[388424874,1759164649648,-811.37,0.00023813,2]
[388424875,1759164649657,-480.0,0.00023813,2]
[388424876,1759164649669,-1578.7,0.00023813,2]
[388424877,1759164649678,-493.87,0.00023813,2]
[388424878,1759164649688,-480.0,0.00023813,2]
[388424879,1759164649698,-480.0,0.00023813,2]
[388424880,1759164649710,-480.0,0.00023813,2]
[388424881,1759164649720,-674.33,0.00023813,2]
[388424882,1759164649729,-480.0,0.00023813,2]
[388424883,1759164649739,-480.0,0.00023813,2]
[388424884,1759164649749,-480.0,0.00023813,2]
[388424885,1759164649758,-480.0,0.00023813,2]
[388424886,1759164649769,-219.5273721,0.00023813,2]
[388424887,1759164649779,-480.0,0.00023813,2]
[388424888,1759164649788,-480.0,0.00023813,2]
[388424889,1759164649798,-882.45,0.00023813,2]
[388424890,1759164649808,-480.0,0.00023813,2]
[388424891,1759164649817,-480.0,0.00023813,2]
[388424892,1759164649827,-2292.38,0.00023813,2]
[388424893,1759164649837,-480.0,0.00023813,2]
[388424894,1759164649847,-480.0,0.00023813,2]
[388424895,1759164649856,-524.21,0.00023813,2]
[388424896,1759164649866,-681.01,0.00023813,2]
[388424897,1759164649876,-480.0,0.00023813,2]
[388424898,1759164649886,-1345.86,0.00023813,2]
[388424899,1759164649896,-480.0,0.00023813,2]
[388424900,1759164649905,-2503.13,0.00023813,2]
[388424901,1759164649915,-480.0,0.00023813,2]
[388424902,1759164649925,-532.47,0.00023813,2]
[388424903,1759164649935,-480.0,0.00023813,2]
[388424904,1759164649945,-480.0,0.00023813,2]
[388424905,1759164649957,-481.46797865,0.00023813,2]
[388424906,1759164649967,-480.0,0.00023813,2]
[388424907,1759164649976,-480.0,0.00023813,2]
[388424908,1759164649986,-480.0,0.00023813,2]
[388424909,1759164649996,-480.0,0.00023813,2]
[388424910,1759164650006,-661.84,0.00023813,2]
[388424911,1759164650017,-480.0,0.00023813,2]
[388424912,1759164650027,-480.0,0.00023813,2]
[388424913,1759164650037,-387.84086418,0.00023813,2]
[388424914,1759164650047,-649.63,0.00023813,2]
[388424915,1759164650057,-480.0,0.00023813,2]
[388424916,1759164650067,-539.09,0.00023813,2]
[388424917,1759164650077,-474.14777006,0.00023813,2]
[388424918,1759164650086,-830.96,0.00023813,2]
[388424919,1759164650097,-480.0,0.00023813,2]
[388424920,1759164650107,-480.0,0.00023813,2]
[388424921,1759164650117,-505.8,0.00023813,2]
[388424922,1759164650126,-480.0,0.00023813,2]
[388424923,1759164650138,-499.22,0.00023813,2]
[388424924,1759164650147,-480.0,0.00023813,2]
[388424925,1759164650157,-480.0,0.00023813,2]
[388424926,1759164650166,-480.0,0.00023813,2]
[388424927,1759164650177,-1034.38,0.00023813,2]
[388424928,1759164650186,-480.0,0.00023813,2]
[388424929,1759164650196,-373.98614919,0.00023826,2]
[388424930,1759164650207,-480.0,0.00023828,2]
[388424931,1759164650219,-480.0,0.00023828,2]
[388424932,1759164650229,-480.0,0.00023828,2]
[388424933,1759164650239,-480.0,0.00023834,2]
[388424934,1759164650250,-480.0,0.00023834,2]
[388424935,1759164650260,-480.0,0.00023834,2]
[388424936,1759164650271,-480.0,0.00023835,2]
[388424937,1759164650280,-480.0,0.00023835,2]
[388424938,1759164650292,-480.0,0.00023835,2]
[388424939,1759164650302,-480.0,0.00023835,2]
[388424940,1759164650312,-480.0,0.00023835,2]
[388424941,1759164650323,-1000.0,0.00023835,5]
[388424942,1759164650332,-500.0,0.00023873,2]
[388424943,1759164650344,-500.0,0.00023873,2]
[388424944,1759164650354,-500.0,0.00023873,2]
[388424945,1759164650364,-500.0,0.00023873,2]
[388424946,1759164650375,-500.0,0.00023873,2]
[388424947,1759164650385,-500.0,0.00023873,2]
[388424948,1759164650395,-500.0,0.00023873,2]
[388424949,1759164650405,-500.0,0.00023873,2]
[388424950,1759164650415,-500.0,0.00023873,2]
[388424951,1759164650425,-500.0,0.00023873,2]
[388424952,1759164650435,-500.0,0.00023873,2]
[388424953,1759164650445,-500.0,0.00023873,2]
[388424954,1759164650457,-500.0,0.00023873,2]
[388424955,1759164650467,-500.0,0.00023873,2]
[388424956,1759164650476,-500.0,0.00023873,2]
[388424957,1759164650486,-500.0,0.00023873,2]
[388424958,1759164650497,-500.0,0.00023873,2]
[388424959,1759164650508,-500.0,0.00023873,2]
[388424960,1759164650518,-500.0,0.00023873,2]
[388424961,1759164650528,-500.0,0.00023873,2]
[388424962,1759164650538,-500.0,0.00023873,2]
[388424963,1759164650548,-728.47590747,0.00023898,2]
[388424964,1759164650559,-160.0,0.00023898,4]
[388424965,1759164650568,-151.0,0.000239,9]
[388424966,1759164650578,-151.0,0.000239,5]
[388424967,1759164650588,-691.0,0.00023905,2]
[388424968,1759164650598,-176.55544409,0.00023912,2]
[388424969,1759164650607,-520.0,0.00023935,3]
[388424970,1759164650617,-480.0,0.00023935,2]
[388424971,1759164650627,-480.0,0.00023935,2]
[388424972,1759164650637,-575.25,0.0002394,2]
[388424973,1759164650647,-537.22,0.0002394,2]
[388424974,1759164650657,-480.0,0.0002394,2]
[388424975,1759164650667,-480.0,0.0002394,2]
[388424976,1759164650677,-480.0,0.0002394,2]
[388424977,1759164650687,-480.0,0.0002394,2]
[388424978,1759164650697,-480.0,0.0002394,2]
[388424979,1759164650707,-480.0,0.0002394,2]
[388424980,1759164650717,-480.0,0.0002394,2]
[388424981,1759164650727,-480.0,0.0002394,2]
[388424982,1759164650736,-574.14,0.0002394,2]
[388424983,1759164650746,-480.0,0.0002394,2]
[388424984,1759164650756,-480.0,0.0002394,2]
[388424985,1759164650766,-593.24745115,0.0002394,2]
[388424986,1759164650775,-480.0,0.0002394,2]
[388424987,1759164650785,-480.0,0.0002394,2]
[388424988,1759164650795,-480.0,0.0002394,2]
[388424989,1759164650804,-480.0,0.0002394,2]
[388424990,1759164650814,-480.0,0.0002394,2]
[388424991,1759164650824,-480.0,0.0002394,2]
[388424992,1759164650833,-496.18,0.0002394,2]
[388424993,1759164650844,-480.0,0.0002394,2]
[388424994,1759164650854,-480.0,0.0002394,2]
[388424995,1759164650863,-480.0,0.0002394,2]
[388424996,1759164650872,-480.0,0.0002394,2]
[388424997,1759164650882,-480.0,0.0002394,2]
[388424998,1759164650892,-419.14445693,0.0002394,2]
[388424999,1759164650902,-531.62,0.0002394,2]
[388425000,1759164650912,-480.0,0.0002394,2]
[388425001,1759164650922,-598.54,0.0002394,2]
[388425002,1759164650932,-487.7,0.0002394,2]
[388425003,1759164650942,-480.0,0.0002394,2]
[388425004,1759164650954,-480.0,0.0002394,2]
[388425005,1759164650964,-480.0,0.0002394,2]
[388425006,1759164650974,-2525.0,0.00023957,2]
[388425007,1759164650984,-1072.98588114,0.00023962,2]
[388425008,1759164650994,-500.0,0.00023973,2]
[388425009,1759164651143,-500.0,0.00023973,2]
[388425010,1759164651171,-400.0,0.00023973,2]
[388425011,1759164651182,-501.4504098,0.00023973,2]
[388425012,1759164651192,-500.0,0.00023973,2]
[388425013,1759164651203,-500.0,0.00023973,2]
[388425014,1759164651214,-500.0,0.00023973,2]
[388425015,1759164651223,-500.0,0.00023973,2]
[388425016,1759164651233,-151.0,0.00023973,7]
[388425017,1759164651243,-151.0,0.00023973,7]
[388425018,1759164651254,-151.0,0.00023973,7]
[388425019,1759164651264,-151.0,0.00023973,7]
[388425020,1759164651273,-151.0,0.00023973,7]
[388425021,1759164651283,-151.0,0.00023973,7]
[388425022,1759164651294,-480.0,0.00023985,2]
[388425023,1759164651304,-480.0,0.00023985,2]
[388425024,1759164651315,-480.0,0.00023985,2]
[388425025,1759164651325,-495.09,0.00023985,2]
[388425026,1759164651336,-480.0,0.00023985,2]
[388425027,1759164651345,-528.78,0.00023985,2]
[388425028,1759164651355,-783.25,0.00023985,2]
[388425029,1759164651364,-725.8,0.00023985,2]
[388425030,1759164651374,-1135.11,0.00023985,2]
[388425031,1759164651384,-2341.56,0.00023985,2]
[388425032,1759164651393,-480.0,0.00023985,2]
[388425033,1759164651405,-4465.95,0.00023985,2]
[388425034,1759164651415,-151.0,0.00023985,7]
[388425035,1759164651424,-151.0,0.00023985,7]
[388425036,1759164651435,-480.0,0.00023985,2]
[388425037,1759164651444,-480.0,0.00023985,2]
[388425038,1759164651454,-151.0,0.00023985,7]
[388425039,1759164651463,-153.871709,0.00023985,7]
[388425040,1759164651473,-151.0,0.00023985,7]
[388425041,1759164651483,-10000.0,0.00023985,7]
[388425042,1759164651492,-10000.0,0.00023985,7]
[388425043,1759164651501,-10000.0,0.00023985,7]
[388425044,1759164651511,-10000.0,0.00023985,7]
[388425045,1759164651519,-10000.0,0.00023985,7]
[388425046,1759164651528,-521.71,0.00023985,2]
[388425047,1759164651538,-249.303497,0.00023985,7]
[388425048,1759164651547,-249.303497,0.00023985,7]
[388425049,1759164651556,-480.0,0.00023985,2]
[388425050,1759164651566,-249.303497,0.00023985,7]
[388425051,1759164651575,-4814.42,0.00023985,2]
[388425052,1759164651584,-249.303497,0.00023985,7]
[388425053,1759164651594,-1844.69,0.00023985,2]
[388425054,1759164651603,-1147.45,0.00023985,2]
[388425055,1759164651612,-480.0,0.00023985,2]
[388425056,1759164651621,-515.08,0.00023985,2]
[388425057,1759164651631,-480.0,0.00023985,2]
[388425058,1759164651641,-480.0,0.00023985,2]
[388425059,1759164651650,-620.0,0.00023985,2]
[388425060,1759164651659,-151.0,0.00023985,7]
[388425061,1759164651669,-480.0,0.00023985,2]
[388425062,1759164651678,-480.0,0.00023986,2]
[388425063,1759164651687,-480.0,0.00023986,2]
[388425064,1759164651696,-842.13,0.00023986,2]
[388425065,1759164651707,-480.0,0.00023986,2]
[388425066,1759164651716,-480.0,0.00023986,2]
[388425067,1759164651726,-480.0,0.00023986,2]
[388425068,1759164651735,-480.0,0.00023986,2]
[388425069,1759164651745,-611.44,0.00023986,2]
[388425070,1759164651755,-480.0,0.00023986,2]
[388425071,1759164651764,-480.0,0.00023986,2]
[388425072,1759164651773,-480.0,0.00023986,2]
[388425073,1759164651783,-480.0,0.00023986,2]
[388425074,1759164651793,-480.0,0.00023986,2]
[388425075,1759164651802,-666.11,0.00023986,2]
[388425076,1759164651812,-480.0,0.00023986,2]
[388425077,1759164651822,-480.0,0.00023986,2]
[388425078,1759164651831,-480.0,0.00023986,2]
[388425079,1759164651841,-604.42,0.00023986,2]
[388425080,1759164651851,-480.0,0.00023986,2]
[388425081,1759164651860,-500.17,0.00023986,2]
[388425082,1759164651870,-480.0,0.00023986,2]
[388425083,1759164651880,-383.21505219,0.00023986,2]
[388425084,1759164651890,-480.0,0.00023986,2]
[388425085,1759164651899,-480.0,0.00023986,2]
[388425086,1759164651909,-480.0,0.00023986,2]
[388425087,1759164651919,-456.42742784,0.00023986,2]
[388425088,1759164651929,-661.3,0.00023986,2]
[388425089,1759164651937,-502.68,0.00023986,2]
[388425090,1759164651946,-480.0,0.00023986,2]
[388425091,1759164651955,-560.09,0.00023986,2]
[388425092,1759164651964,-510.55,0.00023986,2]
[388425093,1759164651973,-621.98,0.00023986,2]
[388425094,1759164651982,-480.0,0.00023986,2]
[388425095,1759164651991,-480.0,0.00023986,2]
[388425096,1759164652000,-480.0,0.00023986,2]
[388425097,1759164652009,-480.0,0.00023986,2]
[388425098,1759164652019,-480.0,0.00023986,2]
[388425099,1759164652029,-480.0,0.00023986,2]
[388425100,1759164652039,-480.0,0.00023986,2]
[388425101,1759164652050,-789.41,0.00023986,2]
[388425102,1759164652059,-366.34748546,0.00023986,2]
[388425103,1759164652067,-480.0,0.00023986,2]
[388425104,1759164652075,-480.0,0.00023986,2]
[388425105,1759164652083,-480.0,0.00023986,2]
[388425106,1759164652092,-480.0,0.00023986,2]
[388425107,1759164652100,-480.0,0.00023986,2]
[388425108,1759164652108,-480.0,0.00023986,2]
[388425109,1759164652117,-480.0,0.00023986,2]
[388425110,1759164652127,-480.0,0.00023986,2]
[388425111,1759164652140,-480.0,0.00023986,2]
[388425112,1759164652150,-589.63,0.00023986,2]
[388425113,1759164652160,-480.0,0.00023986,2]
[388425114,1759164652170,-480.0,0.00023986,2]
[388425115,1759164652181,-480.0,0.00023986,2]
[388425116,1759164652190,-480.0,0.00023986,2]
[388425117,1759164652200,-480.0,0.00023986,2]
[388425118,1759164652214,-177.683661,0.00023987,7]
[388425119,1759164652224,-298.945,0.00023987,7]
[388425120,1759164652233,-151.0,0.00023987,7]
[388425121,1759164652243,-151.0,0.00023987,7]
[388425122,1759164652252,-151.0,0.00023987,7]
[388425123,1759164652262,-772.759636,0.00023987,7]
[388425124,1759164652272,-772.759636,0.00023987,7]
[388425125,1759164652282,-151.0,0.00023987,7]
[388425126,1759164652291,-772.759636,0.00023987,7]
[388425127,1759164652302,-772.759636,0.00023987,7]
[388425128,1759164652311,-151.0,0.00023987,7]
[388425129,1759164652321,-151.0,0.00023987,7]
[388425130,1759164652331,-2264.347528,0.00023987,7]
[388425131,1759164652341,-2264.347528,0.00023987,7]
[388425132,1759164652350,-151.0,0.00023987,7]
[388425133,1759164652360,-2264.347528,0.00023987,7]
[388425134,1759164652371,-2264.347528,0.00023987,7]
[388425135,1759164652381,-151.0,0.00023987,7]
[388425136,1759164652390,-151.0,0.00023987,7]
[388425137,1759164652399,-151.0,0.00023987,7]
[388425138,1759164652408,-151.0,0.00023987,7]
[388425139,1759164652416,-151.0,0.00023987,7]
[388425140,1759164652425,-151.0,0.00023987,7]
[388425141,1759164652434,-237.696537,0.00023987,7]
[388425142,1759164652442,-237.696537,0.00023987,7]
[388425143,1759164652451,-151.0,0.00023987,7]
[388425144,1759164652461,-237.696537,0.00023987,7]
[388425145,1759164652470,-151.0,0.00023987,7]
[388425146,1759164652478,-151.0,0.00023987,7]
[388425147,1759164652486,-237.696537,0.00023987,7]
[388425148,1759164652495,-169.358262,0.00023987,7]
[388425149,1759164652504,-169.358262,0.00023987,7]
[388425150,1759164652513,-169.358262,0.00023987,7]
[388425151,1759164652521,-180.758138,0.00023987,7]
[388425152,1759164652530,-169.358262,0.00023987,7]
[388425153,1759164652538,-180.758138,0.00023987,7]
[388425154,1759164652546,-180.758138,0.00023987,7]
[388425155,1759164652555,-180.758138,0.00023987,7]
[388425156,1759164652567,-10894.50177885,0.00023987,2]
[388425157,1759164652575,-10000.0,0.00023987,2]
[388425158,1759164652584,-100000.0,0.0002399,2]
[388425159,1759164652593,-151.0,0.0002399,7]
[388425160,1759164652602,-151.0,0.0002399,7]
[388425161,1759164652610,-151.0,0.0002399,7]
[388425162,1759164652618,-151.0,0.0002399,7]
[388425163,1759164652627,-151.0,0.0002399,7]
[388425164,1759164652635,-151.0,0.0002399,7]
[388425165,1759164652643,-151.0,0.0002399,7]
[388425166,1759164652652,-151.0,0.0002399,7]
[388425167,1759164652662,-151.0,0.0002399,7]
[388425168,1759164652671,-447.937231,0.0002399,7]
[388425169,1759164652681,-151.0,0.0002399,7]
[388425170,1759164652690,-447.937231,0.0002399,7]
[388425171,1759164652699,-151.0,0.0002399,7]
[388425172,1759164652710,-447.937231,0.0002399,7]
[388425173,1759164652719,-151.0,0.0002399,7]
[388425174,1759164652728,-447.937231,0.0002399,7]
[388425175,1759164652738,-151.0,0.0002399,7]
[388425176,1759164652747,-161.801225,0.0002399,7]
[388425177,1759164652756,-151.0,0.0002399,7]
[388425178,1759164652765,-151.0,0.0002399,7]
[388425179,1759164652775,-153.851363,0.0002399,7]
[388425180,1759164652784,-151.0,0.0002399,7]
[388425181,1759164652794,-151.0,0.0002399,7]
[388425182,1759164652804,-151.0,0.0002399,7]
[388425183,1759164652813,-152.036151,0.0002399,7]
[388425184,1759164652823,-151.0,0.0002399,7]
[388425185,1759164652832,-461.701477,0.0002399,7]
[388425186,1759164652843,-461.701477,0.0002399,7]
[388425187,1759164652853,-461.701477,0.0002399,7]
[388425188,1759164652862,-461.701477,0.0002399,7]
[388425189,1759164652872,-151.0,0.0002399,7]
[388425190,1759164652882,-151.0,0.0002399,7]
[388425191,1759164652891,-151.0,0.0002399,7]
[388425192,1759164652901,-151.0,0.0002399,7]